fUST/lending_fUST_20251128
["ID","MTS","AMOUNT","RATE_DAILY","PERIOD"]
[394991997,1764274239399,-1000.0,8.656e-05,2]
[394991998,1764274239408,-1000.0,8.656e-05,2]
[394991999,1764274239417,-261.74321803,8.68e-05,2]
[394992000,1764274239426,-202.28987547,8.779e-05,2]
[394992001,1764274239435,-630.0,9.225e-05,2]
[394992002,1764274239444,-990.0,9.225e-05,2]
[394992003,1764274239454,-2151.0,9.225e-05,2]
[394992004,1764274239463,-1000.0,9.522e-05,2]
[394992005,1764274239472,-1000.0,9.522e-05,2]
[394992006,1764274239481,-1000.0,9.522e-05,2]
[394992007,1764274239490,-715.0,9.522e-05,2]
[394992008,1764274239500,-231.0,9.55e-05,2]
[394992009,1764274239509,-500.0,9.999e-05,2]
[394992010,1764274239518,-500.0,9.999e-05,2]
[394992011,1764274239527,-510.79115001,9.999e-05,2]
[394992012,1764274239536,-500.0,9.999e-05,2]
[394992013,1764274239545,-500.0,9.999e-05,2]
[394992014,1764274239554,-300.1197997,9.999e-05,2]
[394992015,1764274239564,-50000.0,0.0001,2]
[394992016,1764274239573,-151.0,0.0001,2]
[394992017,1764274239582,-151.0,0.0001,2]
[394992018,1764274239591,-151.0,0.0001,2]
[394992019,1764274239600,-151.0,0.0001,2]
[394992020,1764274239609,-151.0,0.0001,2]
[394992021,1764274239618,-151.0,0.0001,2]
[394992022,1764274239628,-151.0,0.0001,2]
[394992023,1764274239638,-151.0,0.0001,2]
[394992024,1764274239646,-151.0,0.0001,2]
[394992025,1764274239656,-151.0,0.0001,2]
[394992026,1764274239665,-151.0,0.0001,2]
[394992027,1764274239674,-151.0,0.0001,2]
[394992028,1764274239685,-151.0,0.0001,2]
[394992029,1764274239694,-151.0,0.0001,2]
[394992030,1764274239704,-151.0,0.0001,2]
[394992031,1764274239714,-151.0,0.0001,2]
[394992032,1764274239723,-151.0,0.0001,2]
[394992033,1764274239734,-151.0,0.0001,2]
[394992034,1764274239744,-151.0,0.0001,2]
[394992035,1764274239753,-151.0,0.0001,2]
[394992036,1764274239761,-209.40437684,0.0001,2]
[394992037,1764274239770,-611.70847217,0.00010451,2]
[394992039,1764274239779,-1000.0,0.00010474,2]
[394992040,1764274239788,-1000.0,0.00010474,2]
[394992041,1764274239797,-1000.0,0.00010474,2]
[394992042,1764274239806,-217.15233878,0.00010548,2]
[394992043,1764274239815,-1500.0,0.00010959,2]
[394992044,1764274239823,-556.07094169,0.00010959,2]
[394992045,1764274239832,-556.07094169,0.00010959,2]
[394992046,1764274239841,-556.07094169,0.00010959,2]
[394992047,1764274239850,-556.07094169,0.00010959,2]
[394992048,1764274239861,-556.07094169,0.00010959,2]
[394992049,1764274239870,-556.07094169,0.00010959,2]
[394992050,1764274239880,-556.07094169,0.00010959,2]
[394992051,1764274239889,-556.07094169,0.00010959,2]
[394992052,1764274239898,-556.07094169,0.00010959,2]
[394992053,1764274239909,-556.07094169,0.00010959,2]
[394992054,1764274239919,-556.07094169,0.00010959,2]
[394992055,1764274239928,-556.07094169,0.00010959,2]
[394992056,1764274239938,-556.07094169,0.00010959,2]
[394992057,1764274239947,-556.07094169,0.00010959,2]
[394992058,1764274239955,-556.07094169,0.00010959,2]
[394992059,1764274239965,-225.18697532,0.00011096,2]
[394992060,1764274239974,-258.0,0.0001155,2]
[394992061,1764274239983,-625.92455281,0.00011559,2]
[394992063,1764274239993,-262.00496124,0.0001161,2]
[394992064,1764274240002,-233.51889341,0.00011644,2]
[394992065,1764274240012,-353.54508592,0.00011669,2]
[394992066,1764274240021,-160.0,0.00011669,2]
[394992067,1764274240031,-629.79484155,0.00011751,2]
[394992068,1764274240041,-809.15950186,0.00011985,2]
[394992069,1764274240050,-242.15909246,0.00012192,2]
[394992070,1764274240059,-158.94,0.00012329,2]
[394992071,1764274240069,-3367.42,0.00012329,2]
[394992072,1764274240078,-2938.64,0.00012329,2]
[394992073,1764274240088,-2448.86,0.00012329,2]
[394992074,1764274240097,-2040.72,0.00012329,2]
[394992075,1764274240107,-1700.6,0.00012329,2]
[394992076,1764274240116,-1417.17,0.00012329,2]
[394992077,1764274240126,-1180.97,0.00012329,2]
[394992078,1764274240135,-984.14,0.00012329,2]
[394992079,1764274240144,-820.12,0.00012329,2]
[394992080,1764274240153,-683.43,0.00012329,2]
[394992081,1764274240162,-569.53,0.00012329,2]
[394992082,1764274240171,-474.61,0.00012329,2]
[394992083,1764274240180,-395.51,0.00012329,2]
[394992085,1764274240189,-329.59,0.00012329,2]
[394992087,1764274240198,-274.66,0.00012329,2]
[394992089,1764274240207,-228.88,0.00012329,2]
[394992091,1764274240216,-1376.34406238,0.00012377,2]
[394992092,1764274240225,-251.11897888,0.0001274,2]
[394992094,1764274240235,-550.89558517,0.00012987,2]
[394992095,1764274240245,-260.4103811,0.00013288,2]
[394992096,1764274240254,-285.0,0.0001355,2]
[394992098,1764274240263,-1000.0,0.00013698,2]
[394992099,1764274240273,-1000.0,0.00013698,2]
[394992100,1764274240282,-1000.0,0.00013698,2]
[394992101,1764274240293,-542.3,0.00013698,2]
[394992102,1764274240302,-1000.0,0.00013699,2]
[394992103,1764274240311,-750.0,0.00013699,2]
[394992105,1764274240321,-500.0,0.00013699,2]
[394992107,1764274240333,-500.0,0.00013699,2]
[394992108,1764274240342,-270.0455652,0.00013836,2]
[394992109,1764274240351,-1000.0,0.00014247,2]
[394992110,1764274240362,-935.04671586,0.00014247,2]
[394992111,1764274240371,-2446.83388868,0.00014303,2]
[394992112,1764274240381,-280.03725112,0.00014384,2]
[394992113,1764274240390,-1120.04583982,0.00014795,2]
[394992114,1764274240399,-189.216708,0.00015068,2]
[394992115,1764274240410,-1820.60887919,0.0001519,2]
[394992116,1764274240419,-312.0,0.0001555,2]
[394992117,1764274240428,-500.0,0.00016438,2]
[394992118,1764274240437,-150.0,0.00016991,2]
[394992119,1764274240447,-267.94208854,0.00017368,2]
[394992120,1764274240456,-625.92455281,0.00017368,2]
[394992121,1764274240465,-500.0,0.00017534,2]
[394992122,1764274240474,-339.0,0.0001755,2]
[394992123,1764274240484,-629.79484155,0.00017752,2]
[394992124,1764274240493,-550.89558517,0.000178,3]
[394992125,1764274240502,-150.0,0.00018536,2]
[394992126,1764274240512,-500.0,0.0001863,2]
[394992127,1764274240522,-366.0,0.0001955,2]
[394992128,1764274240531,-1060.258,0.00019686,2]
[394992129,1764274240540,-184.38507283,0.00019686,2]
[394992130,1764274240549,-500.0,0.00019726,2]
[394992131,1764274240557,-409.14929,0.0002,10]
[394992132,1764274240567,-300.0,0.0002,2]
[394992133,1764274240576,-150.0,0.00020081,2]
[394992134,1764274240585,-2000.0,0.00020118,3]
[394992135,1764274240594,-2000.0,0.00020237,3]
[394992136,1764274240604,-2000.0,0.00020355,3]
[394992137,1764274240614,-2000.0,0.00020474,3]
[394992138,1764274240625,-353.54508592,0.000205,3]
[394992139,1764274240634,-2000.0,0.00020593,3]
[394992140,1764274240643,-550.89558517,0.00020721,2]
[394992141,1764274240654,-500.0,0.00020821,2]
[394992142,1764274240663,-11946.43137947,0.0002094,2]
[394992143,1764274240672,-3000.0,0.00021,2]
[394992144,1764274240682,-3000.0,0.0002101,2]
[394992145,1764274240691,-443.0,0.00021013,2]
[394992146,1764274240700,-3000.0,0.0002102,2]
[394992147,1764274240709,-1626.51564683,0.0002103,2]
[394992148,1764274240784,-1373.48435317,0.0002103,2]
[394992149,1764274240793,-2744.94687561,0.0002104,2]
[394992150,1764274241966,-2e-08,0.00014932,2]
[394992151,1764274241977,-290.39862939,0.00014932,2]
[394992152,1764274241987,-301.1433787,0.0001548,2]
[394992153,1764274241996,-2912.57753939,0.0002104,2]
[394992154,1764274242005,-295.89289752,0.00021086,2]
[394992155,1764274242016,-147.10710248,0.00021086,2]
[394992156,1764274242026,-141.15025905,0.00021099,3]
[394992166,1764274246508,-1858.84974095,0.00021099,3]
[394992167,1764274246518,-156.46268417,0.00021198,5]
[394992168,1764274246527,-443.0,0.0002121,2]
[394992169,1764274246537,-443.0,0.00021233,2]
[394992170,1764274246546,-443.0,0.00021273,2]
[394992171,1764274246555,-443.0,0.00021378,2]
[394992173,1764274246789,-443.0,0.00021517,2]
[394992174,1764274246799,-443.0,0.00021539,2]
[394992175,1764274246810,-393.0,0.0002155,2]
[394992176,1764274246821,-150.0,0.00021625,2]
[394992177,1764274246830,-443.0,0.00021671,2]
[394992178,1764274246839,-443.0,0.00021818,2]
[394992179,1764274246848,-443.0,0.00021904,2]
[394992180,1764274246857,-443.0,0.00021907,2]
[394992181,1764274246866,-500.0,0.00021917,2]
[394992182,1764274246876,-2000.0,0.00021989,3]
[394992183,1764274246887,-355.95,0.00022,7]
[394992184,1764274246897,-475.02,0.00022,14]
[394992185,1764274246906,-183.0,0.00022,2]
[394992186,1764274246916,-443.0,0.00022042,2]
[394992187,1764274246925,-443.0,0.00022084,2]
[394992188,1764274246934,-443.0,0.00022128,2]
[394992189,1764274246943,-443.0,0.00022274,2]
[394992190,1764274246953,-550.89558517,0.00022361,3]
[394992191,1764274246962,-443.0,0.00022448,2]
[394992192,1764274246972,-443.0,0.00022549,2]
[394992193,1764274246981,-443.0,0.00022632,2]
[394992194,1764274246991,-443.0,0.00022763,2]
[394992195,1764274247001,-443.0,0.00022804,2]
[394992196,1764274247010,-173.11990952,0.00022813,2]
[394992197,1764274247022,-443.0,0.00022821,2]
[394992198,1764274247031,-572.8401282,0.00023013,2]
[394992199,1764274247040,-3233.35000485,0.00023059,15]
[394992200,1764274247840,-402.03992515,0.00023059,15]
[394992201,1764274247850,-871.71321,0.00023059,15]
[394992202,1764274247859,-443.0,0.00023089,2]
[394992203,1764274247868,-2000.0,0.0002309,3]
[394992204,1764274247878,-443.0,0.00023096,2]
[394992205,1764274247888,-443.0,0.00023123,2]
[394992206,1764274247898,-150.0,0.0002317,2]
[394992207,1764274247907,-625.92455281,0.00023177,2]
[394992208,1764274247917,-1396.73405565,0.00023327,2]
[394992211,1764274441620,5000.0,0.00014,10]
[394992212,1764274451200,4496.09747272,0.00014,10]
[394992213,1764274465333,497.85031235,0.00014,10]
[394992246,1764275232903,286.82347181,3.989e-05,2]
[394992248,1764275303448,-150.0,4.05e-05,2]
[394992249,1764275311480,691.79577131,0.0001,7]
[394992254,1764275356693,-1200.0,4.07e-05,2]
[394992255,1764275356727,-300.0,4.07e-05,2]
[394992316,1764275432400,-300.0,4.07e-05,2]
[394992318,1764275432410,-8971.0,4.072e-05,2]
[394992320,1764275432421,-12198.99579985,4.072e-05,2]
[394992449,1764275440775,-7268.48379044,4.072e-05,2]
[394992450,1764275440789,-4092.77758491,4.072e-05,2]
[394992451,1764275440800,-150.0,4.112e-05,2]
[394992452,1764275441134,-300.0,4.152e-05,2]
[394992453,1764275441154,-300.0,4.152e-05,2]
[394992454,1764275441164,-300.0,4.152e-05,2]
[394992455,1764275441173,-300.0,4.152e-05,2]
[394992456,1764275441183,-300.0,4.152e-05,2]
[394992457,1764275441193,-300.0,4.152e-05,2]
[394992458,1764275441203,-300.0,4.152e-05,2]
[394992459,1764275441213,-300.0,4.152e-05,2]
[394992460,1764275441222,-300.0,4.152e-05,2]
[394992461,1764275441232,-300.0,4.152e-05,2]
[394992462,1764275441241,-300.0,4.152e-05,2]
[394992463,1764275441250,-300.0,4.152e-05,2]
[394992464,1764275441260,-300.0,4.152e-05,2]
[394992465,1764275441271,-300.0,4.152e-05,2]
[394992466,1764275441281,-300.0,4.152e-05,2]
[394992467,1764275441290,-600.0,4.234e-05,2]
[394992468,1764275441300,-420.0,4.478e-05,2]
[394992469,1764275441309,-720.0,4.657e-05,2]
[394992470,1764275441319,-11749.56409711,4.8e-05,2]
[394992473,1764275444910,-38.18436732,4.8e-05,2]
[394992478,1764275446635,-326.3384012,4.8e-05,2]
[394992479,1764275446647,-572.20063814,4.8e-05,2]
[394992494,1764276024364,203.7995521,3.684e-05,2]
[394992495,1764276032628,203.7995521,3.684e-05,2]
[394992496,1764276047502,203.7995521,3.684e-05,2]
[394992497,1764276055360,203.7995521,3.684e-05,2]
[394992498,1764276070166,203.7995521,3.684e-05,2]
[394992500,1764276092031,203.7995521,3.684e-05,2]
[394992503,1764276114965,203.7995521,3.684e-05,2]
[394992505,1764276136854,203.7995521,3.684e-05,2]
[394992526,1764276331298,150.0,3.666e-05,2]
[394992529,1764276352865,150.0,3.666e-05,2]
[394992530,1764276374891,150.0,3.666e-05,2]
[394992533,1764276397225,150.0,3.666e-05,2]
[394992536,1764276413358,150.0,3.666e-05,2]
[394992537,1764276421041,150.0,3.666e-05,2]
[394992538,1764276435979,150.0,3.666e-05,2]
[394992539,1764276443713,150.0,3.666e-05,2]
[394992545,1764276458503,150.0,3.666e-05,2]
[394992547,1764276466189,150.0,3.666e-05,2]
[394992549,1764276481629,150.0,3.666e-05,2]
[394992550,1764276489213,150.0,3.666e-05,2]
[394992552,1764276503992,150.0,3.666e-05,2]
[394992553,1764276511695,150.0,3.666e-05,2]
[394992555,1764276519842,251.0,0.00027397,120]
[394992556,1764276519864,249.0,0.00027397,120]
[394992557,1764276519944,150.0,3.684e-05,2]
[394992558,1764276528261,150.0,3.684e-05,2]
[394992559,1764276536635,150.0,3.684e-05,2]
[394992560,1764276545111,150.0,3.684e-05,2]
[394992561,1764276552831,150.0,3.684e-05,2]
[394992562,1764276560531,150.0,3.684e-05,2]
[394992563,1764276568451,150.0,3.684e-05,2]
[394992564,1764276576808,150.0,3.684e-05,2]
[394992565,1764276584209,150.0,3.684e-05,2]
[394992566,1764276591935,150.0,3.684e-05,2]
[394992567,1764276599919,150.0,3.684e-05,2]
[394992568,1764276607615,150.0,3.684e-05,2]
[394992569,1764276615580,150.0,3.684e-05,2]
[394992570,1764276623343,150.0,3.684e-05,2]
[394992575,1764276631311,150.0,3.684e-05,2]
[394992604,1764276631612,-150.0,3.722e-05,2]
[394992606,1764276631622,-203.7995521,3.874e-05,2]
[394992609,1764276631633,-250.0,4.641e-05,2]
[394992610,1764276631643,-300.0,4.699e-05,2]
[394992612,1764276631651,-16582.09164791,4.7e-05,2]
[394992616,1764276631682,-11856.30000003,4.7e-05,2]
[394992915,1764276637576,-8663.19639879,4.7e-05,2]
[394992916,1764276637588,-397.54104496,4.7e-05,2]
[394992917,1764276637630,-980.27895504,4.7e-05,2]
[394992927,1764276640216,-750.49374402,4.653e-05,2]
[394992928,1764276640226,-287.99375448,4.7e-05,2]
[394992970,1764276715093,614.92961297,0.0003013,120]
[394992971,1764276836862,5000.0,0.0001333,9]
[394992972,1764276844968,4946.43572622,0.0001333,9]
[394992974,1764277158838,500.0,0.00027397,120]
[394992975,1764277243251,1121.98900711,0.0001333,9]
[394992976,1764277376448,445.43,0.0002,30]
[394992979,1764277437275,2200.0,0.0002,60]
[394992980,1764277496486,500.0,0.00027397,120]
[394993026,1764277831822,-150.0,3.843e-05,2]
[394993028,1764277831832,-2400.6517392,3.848e-05,2]
[394993030,1764277831841,-1200.0,4.599e-05,2]
[394993031,1764277831850,-300.0,4.599e-05,2]
[394993032,1764277831859,-5694.3482608,4.6e-05,2]
[394993051,1764277837764,-607.05199346,4.6e-05,2]
[394993052,1764277837775,-91474.4365618,4.6e-05,2]
[394993053,1764277837822,-19332.11915625,4.6e-05,2]
[394993093,1764277840102,-872.29,4.6e-05,2]
[394993095,1764277840113,-605.89603394,4.6e-05,2]
[394993098,1764277840162,-826.18160396,4.6e-05,2]
[394993145,1764277844411,-1412.0,4.6e-05,2]
[394993164,1764277845997,-143508.25740595,4.6e-05,2]
[394993165,1764277846007,-500.0,4.673e-05,2]
[394993166,1764277846018,-300.0,4.895e-05,2]
[394993167,1764277846027,-300.0,4.895e-05,2]
[394993168,1764277846038,-300.0,4.895e-05,2]
[394993169,1764277846047,-300.0,4.895e-05,2]
[394993170,1764277846057,-300.0,4.895e-05,2]
[394993171,1764277846066,-300.0,4.895e-05,2]
[394993172,1764277846075,-300.0,4.895e-05,2]
[394993173,1764277846085,-300.0,4.895e-05,2]
[394993174,1764277846095,-300.0,4.895e-05,2]
[394993175,1764277846104,-300.0,4.895e-05,2]
[394993176,1764277846114,-300.0,4.895e-05,2]
[394993177,1764277846124,-300.0,4.895e-05,2]
[394993178,1764277846134,-300.0,4.895e-05,2]
[394993179,1764277846145,-300.0,4.895e-05,2]
[394993180,1764277846164,-300.0,4.895e-05,2]
[394993181,1764277846174,-600.0,4.895e-05,2]
[394993182,1764277846184,-500.0,5e-05,2]
[394993183,1764277846193,-500.0,5e-05,2]
[394993184,1764277846202,-500.0,5e-05,2]
[394993185,1764277846212,-500.0,5e-05,2]
[394993186,1764277846222,-597.94685804,5e-05,2]
[394993187,1764277846231,-357.55380501,5e-05,2]
[394993188,1764277846242,-500.0,5e-05,2]
[394993189,1764277846252,-500.0,5e-05,2]
[394993190,1764277846263,-500.0,5e-05,2]
[394993191,1764277846272,-500.0,5e-05,2]
[394993192,1764277846282,-465.70459547,5e-05,2]
[394993193,1764277846291,-320.8709264,5e-05,2]
[394993194,1764277846300,-981.82584713,5e-05,2]
[394993195,1764277846310,-981.82584713,5e-05,2]
[394993196,1764277846320,-981.82584713,5e-05,2]
[394993197,1764277846330,-981.82584713,5e-05,2]
[394993198,1764277846340,-981.82584713,5e-05,2]
[394993199,1764277846350,-981.82584713,5e-05,2]
[394993200,1764277846359,-981.82584713,5e-05,2]
[394993201,1764277846369,-981.82584713,5e-05,2]
[394993202,1764277846379,-981.82584713,5e-05,2]
[394993203,1764277846389,-981.82584713,5e-05,2]
[394993204,1764277846399,-981.82584713,5e-05,2]
[394993205,1764277846409,-981.82584713,5e-05,2]
[394993206,1764277846419,-981.82584713,5e-05,2]
[394993207,1764277846428,-981.82584713,5e-05,2]
[394993208,1764277846438,-981.82584713,5e-05,2]
[394993209,1764277846448,-981.82584713,5e-05,2]
[394993210,1764277846457,-981.82584713,5e-05,2]
[394993211,1764277846466,-981.82584713,5e-05,2]
[394993212,1764277846476,-981.82584713,5e-05,2]
[394993213,1764277846485,-981.82584713,5e-05,2]
[394993214,1764277846495,-981.82584713,5e-05,2]
[394993215,1764277846505,-981.82584713,5e-05,2]
[394993216,1764277846514,-981.82584713,5e-05,2]
[394993217,1764277846524,-981.82584713,5e-05,2]
[394993218,1764277846533,-981.82584713,5e-05,2]
[394993219,1764277846543,-981.82584713,5e-05,2]
[394993220,1764277846553,-981.82584713,5e-05,2]
[394993221,1764277846562,-981.82584713,5e-05,2]
[394993222,1764277846573,-981.82584713,5e-05,2]
[394993223,1764277846582,-981.82584713,5e-05,2]
[394993224,1764277846592,-981.82584713,5e-05,2]
[394993225,1764277846601,-981.82584713,5e-05,2]
[394993226,1764277846611,-981.82584713,5e-05,2]
[394993227,1764277846620,-981.82584713,5e-05,2]
[394993228,1764277846629,-981.82584713,5e-05,2]
[394993229,1764277846639,-981.82584713,5e-05,2]
[394993230,1764277846649,-981.82584713,5e-05,2]
[394993231,1764277846663,-981.82584713,5e-05,2]
[394993232,1764277846673,-981.82584713,5e-05,2]
[394993233,1764277846683,-981.82584713,5e-05,2]
[394993234,1764277846693,-981.82584713,5e-05,2]
[394993235,1764277846702,-981.82584713,5e-05,2]
[394993236,1764277846712,-981.82584713,5e-05,2]
[394993237,1764277846726,-981.82584713,5e-05,2]
[394993238,1764277846736,-981.82584713,5e-05,2]
[394993239,1764277846746,-981.82584713,5e-05,2]
[394993240,1764277846756,-981.82584713,5e-05,2]
[394993241,1764277846765,-981.82584713,5e-05,2]
[394993242,1764277846775,-981.82584713,5e-05,2]
[394993243,1764277846784,-981.82584713,5e-05,2]
[394993244,1764277846793,-981.82584713,5e-05,2]
[394993245,1764277846802,-981.82584713,5e-05,2]
[394993246,1764277846811,-981.82584713,5e-05,2]
[394993247,1764277846822,-981.82584713,5e-05,2]
[394993248,1764277846831,-981.82584713,5e-05,2]
[394993249,1764277846841,-981.82584713,5e-05,2]
[394993250,1764277846851,-981.82584713,5e-05,2]
[394993251,1764277846860,-981.82584713,5e-05,2]
[394993252,1764277846870,-981.82584713,5e-05,2]
[394993253,1764277846880,-981.82584713,5e-05,2]
[394993254,1764277846889,-981.82584713,5e-05,2]
[394993255,1764277846899,-981.82584713,5e-05,2]
[394993256,1764277846909,-981.82584713,5e-05,2]
[394993257,1764277846921,-951.61582107,5e-05,2]
[394993258,1764277846930,-951.61582107,5e-05,2]
[394993259,1764277846940,-951.61582107,5e-05,2]
[394993260,1764277846950,-951.61582107,5e-05,2]
[394993261,1764277846959,-951.61582107,5e-05,2]
[394993262,1764277846968,-209.72097763,5e-05,2]
[394993263,1764278160418,500.0,0.00027397,120]
[394993264,1764278235661,1353.75003364,0.0001333,9]
[394993265,1764278251028,1353.75003364,0.0001333,9]
[394993288,1764278407466,1498.6215573,3.408e-05,2]
[394993289,1764278492153,500.0,0.00027397,120]
[394993290,1764278556763,1031.40776988,4.49e-05,120]
[394993291,1764278699335,3.66261715,0.00030136,120]
[394993292,1764278699356,295.82553795,0.00030136,120]
[394993299,1764278757516,300.0,3.408e-05,2]
[394993306,1764278810119,805.4544344,0.00027397,120]
[394993366,1764279032448,-150.0,4.018e-05,2]
[394993367,1764279032459,-535.0,4.033e-05,2]
[394993368,1764279032469,-300.0,4.033e-05,2]
[394993369,1764279032479,-1200.0,4.033e-05,2]
[394993370,1764279032489,-10505.84327284,4.034e-05,2]
[394993371,1764279032589,-1002.31568725,4.034e-05,2]
[394993400,1764279044676,-615.87501931,4.034e-05,2]
[394993401,1764279044685,-300.0,4.114e-05,2]
[394993402,1764279044695,-300.0,4.114e-05,2]
[394993403,1764279044705,-300.0,4.114e-05,2]
[394993404,1764279044715,-300.0,4.114e-05,2]
[394993405,1764279044725,-300.0,4.114e-05,2]
[394993406,1764279044735,-300.0,4.114e-05,2]
[394993407,1764279044745,-300.0,4.114e-05,2]
[394993408,1764279044755,-300.0,4.114e-05,2]
[394993409,1764279044765,-300.0,4.114e-05,2]
[394993410,1764279044774,-300.0,4.114e-05,2]
[394993411,1764279044784,-300.0,4.114e-05,2]
[394993412,1764279044793,-300.0,4.114e-05,2]
[394993413,1764279044803,-300.0,4.114e-05,2]
[394993414,1764279044813,-300.0,4.114e-05,2]
[394993415,1764279044822,-300.0,4.114e-05,2]
[394993416,1764279044832,-420.0,4.436e-05,2]
[394993417,1764279044841,-305.38397941,4.473e-05,2]
[394993418,1764279044851,-506.98661321,4.473e-05,2]
[394993419,1764279044861,-500.0,4.473e-05,2]
[394993420,1764279044871,-500.0,4.473e-05,2]
[394993421,1764279044880,-587.0,4.88e-05,2]
[394993422,1764279044889,-299.17013618,5e-05,2]
[394993423,1764279044899,-500.0,5e-05,2]
[394993424,1764279044908,-500.0,5e-05,2]
[394993425,1764279044917,-500.0,5e-05,2]
[394993426,1764279044927,-288.66076201,5e-05,2]
[394993427,1764279044936,-500.0,5e-05,2]
[394993428,1764279044946,-398.59297202,5e-05,2]
[394993429,1764279044957,-500.0,5e-05,2]
[394993430,1764279044966,-500.0,5e-05,2]
[394993431,1764279044975,-500.0,5e-05,2]
[394993432,1764279044984,-500.0,5e-05,2]
[394993433,1764279044994,-500.0,5e-05,2]
[394993434,1764279045004,-500.0,5e-05,2]
[394993435,1764279045013,-500.0,5e-05,2]
[394993436,1764279045023,-500.0,5e-05,2]
[394993437,1764279045032,-500.0,5e-05,2]
[394993438,1764279045042,-500.0,5e-05,2]
[394993439,1764279045051,-500.0,5e-05,2]
[394993440,1764279045060,-500.0,5e-05,2]
[394993441,1764279045070,-500.0,5e-05,2]
[394993442,1764279045079,-500.0,5e-05,2]
[394993443,1764279045089,-500.0,5e-05,2]
[394993444,1764279045099,-500.0,5e-05,2]
[394993445,1764279045108,-500.0,5e-05,2]
[394993446,1764279045118,-500.0,5e-05,2]
[394993447,1764279045127,-500.0,5e-05,2]
[394993448,1764279045138,-335.72416834,5e-05,2]
[394993449,1764279045149,-500.0,5e-05,2]
[394993450,1764279045159,-500.0,5e-05,2]
[394993451,1764279045169,-500.0,5e-05,2]
[394993452,1764279045178,-500.0,5e-05,2]
[394993453,1764279045188,-500.0,5e-05,2]
[394993454,1764279045198,-500.0,5e-05,2]
[394993455,1764279045207,-500.0,5e-05,2]
[394993456,1764279045217,-500.0,5e-05,2]
[394993457,1764279045227,-500.0,5e-05,2]
[394993458,1764279045236,-500.0,5e-05,2]
[394993459,1764279045246,-500.0,5e-05,2]
[394993460,1764279045255,-500.0,5e-05,2]
[394993461,1764279045264,-500.0,5e-05,2]
[394993462,1764279045274,-500.0,5e-05,2]
[394993463,1764279045284,-500.0,5e-05,2]
[394993464,1764279045294,-500.0,5e-05,2]
[394993465,1764279045303,-500.0,5e-05,2]
[394993466,1764279045313,-500.0,5e-05,2]
[394993467,1764279045324,-500.0,5e-05,2]
[394993468,1764279045333,-500.0,5e-05,2]
[394993469,1764279045343,-500.0,5e-05,2]
[394993470,1764279045352,-500.0,5e-05,2]
[394993471,1764279045363,-500.0,5e-05,2]
[394993472,1764279045376,-500.0,5e-05,2]
[394993473,1764279045385,-500.0,5e-05,2]
[394993474,1764279045395,-500.0,5e-05,2]
[394993475,1764279045405,-500.0,5e-05,2]
[394993476,1764279045415,-500.0,5e-05,2]
[394993477,1764279045425,-500.0,5e-05,2]
[394993478,1764279045435,-500.0,5e-05,2]
[394993479,1764279045444,-500.0,5e-05,2]
[394993480,1764279045454,-500.0,5e-05,2]
[394993481,1764279045463,-500.0,5e-05,2]
[394993482,1764279045474,-500.0,5e-05,2]
[394993483,1764279045483,-500.0,5e-05,2]
[394993484,1764279045493,-500.0,5e-05,2]
[394993485,1764279045504,-500.0,5e-05,2]
[394993486,1764279045514,-500.0,5e-05,2]